fUSD/lending_fUSD_20241215
["ID","MTS","AMOUNT","RATE_DAILY","PERIOD"]
[345462492,1734273052830,-269.05,0.00019397,3]
[345462493,1734273052841,-601.5,0.00019397,3]
[345462494,1734273052852,-712.22,0.00019397,3]
[345462495,1734273052862,-965.33,0.00019397,3]
[345462496,1734273052872,-986.7,0.00019397,3]
[345462497,1734273052883,-151.0,0.00019397,2]
[345462498,1734273052893,-500.0,0.00019397,3]
[345462499,1734273052903,-894.68,0.00019397,3]
[345462500,1734273052913,-4061.07,0.00019397,3]
[345462501,1734273052922,-500.0,0.00019397,3]
[345462502,1734273052933,-523.94,0.00019397,3]
[345462503,1734273052943,-359.71,0.00019397,3]
[345462504,1734273052953,-500.0,0.00019397,3]
[345462505,1734273052962,-500.0,0.00019397,3]
[345462506,1734273052972,-500.0,0.00019397,3]
[345462507,1734273052981,-1228.124814,0.00019397,2]
[345462508,1734273052990,-618.83,0.00019397,3]
[345462509,1734273053001,-151.0,0.00019397,2]
[345462510,1734273053012,-1228.124814,0.00019397,2]
[345462511,1734273053022,-151.0,0.00019397,2]
[345462512,1734273053032,-1373.777477,0.00019397,2]
[345462513,1734273053042,-500.0,0.00019397,3]
[345462514,1734273053052,-612.04,0.00019397,3]
[345462515,1734273053062,-1373.777477,0.00019397,2]
[345462516,1734273053072,-510.17,0.00019397,3]
[345462517,1734273053081,-500.0,0.00019397,3]
[345462518,1734273053091,-270.97091631,0.00019397,3]
[345462519,1734273053100,-500.0,0.00019397,3]
[345462520,1734273053109,-508.16,0.00019397,3]
[345462521,1734273053118,-18996.202,0.00019398,2]
[345462522,1734273053127,-290.49,0.000194,2]
[345462523,1734273053136,-150.0,0.000194,4]
[345462524,1734273053146,-241.1954175,0.00019414,4]
[345462525,1734273053155,-178.14694202,0.00019414,4]
[345462526,1734273053165,-355.69,0.0001942,2]
[345462527,1734273053174,-150.0,0.00019429,4]
[345462528,1734273053184,-241.1954175,0.00019434,4]
[345462529,1734273053194,-178.14694202,0.00019434,4]
[345462530,1734273053203,-428.19118329,0.00019436,2]
[345462531,1734273053212,-150.0,0.0001944,4]
[345462532,1734273053223,-1356.3940691,0.00019451,2]
[345462533,1734273053232,-241.1954175,0.00019455,4]
[345462534,1734273053241,-178.14694202,0.00019455,4]
[345462535,1734273053250,-2758.13534851,0.00019456,2]
[345462536,1734273053260,-241.1954175,0.00019475,4]
[345462537,1734273053270,-178.14694202,0.00019475,4]
[345462538,1734273053279,-500.0,0.00019479,2]
[345462539,1734273053288,-500.0,0.00019479,2]
[345462540,1734273053297,-500.0,0.00019479,2]
[345462541,1734273053306,-500.0,0.00019479,2]
[345462542,1734273053315,-150.0,0.0001948,4]
[345462543,1734273053324,-500.0,0.00019487,2]
[345462544,1734273053333,-500.0,0.00019488,3]
[345462545,1734273053342,-500.0,0.00019488,3]
[345462546,1734273053352,-534.23451324,0.00019488,3]
[345462547,1734273053363,-500.0,0.00019488,3]
[345462548,1734273053374,-500.0,0.00019488,3]
[345462549,1734273053383,-500.0,0.00019488,3]
[345462550,1734273053392,-714.06,0.00019488,3]
[345462551,1734273053402,-500.0,0.00019488,3]
[345462552,1734273053412,-500.0,0.00019488,3]
[345462553,1734273053421,-500.0,0.00019488,3]
[345462554,1734273053431,-601.5,0.00019488,3]
[345462555,1734273053440,-712.22,0.00019488,3]
[345462556,1734273053449,-965.33,0.00019488,3]
[345462557,1734273053458,-500.0,0.00019488,3]
[345462558,1734273053469,-986.7,0.00019488,3]
[345462559,1734273053478,-758.32,0.00019488,3]
[345462560,1734273053487,-500.0,0.00019488,3]
[345462561,1734273053497,-500.0,0.00019488,3]
[345462562,1734273053506,-500.0,0.00019488,3]
[345462563,1734273053515,-500.0,0.00019488,3]
[345462564,1734273053524,-894.68,0.00019488,3]
[345462565,1734273053533,-889.33,0.00019488,3]
[345462566,1734273053542,-4061.07,0.00019488,3]
[345462567,1734273053551,-500.0,0.00019488,3]
[345462568,1734273053560,-523.94,0.00019488,3]
[345462569,1734273053570,-500.0,0.00019488,3]
[345462570,1734273053579,-500.0,0.00019488,3]
[345462571,1734273053588,-500.0,0.00019488,3]
[345462572,1734273053597,-500.0,0.00019488,3]
[345462573,1734273053606,-500.0,0.00019488,3]
[345462574,1734273053615,-500.0,0.00019488,3]
[345462575,1734273053624,-281.67,0.00019488,3]
[345462576,1734273053633,-500.0,0.00019488,3]
[345462577,1734273053642,-500.0,0.00019488,3]
[345462578,1734273053651,-500.0,0.00019488,3]
[345462579,1734273053660,-500.0,0.00019488,3]
[345462580,1734273053669,-574.4,0.00019488,3]
[345462581,1734273053679,-500.0,0.00019488,3]
[345462582,1734273053688,-500.0,0.00019488,3]
[345462583,1734273053697,-500.0,0.00019488,3]
[345462584,1734273053706,-1050.33,0.00019488,3]
[345462585,1734273053715,-293.9,0.00019488,3]
[345462586,1734273053725,-500.0,0.00019488,3]
[345462587,1734273053735,-500.0,0.00019488,3]
[345462588,1734273053744,-500.0,0.00019488,3]
[345462589,1734273053753,-500.0,0.00019488,3]
[345462590,1734273053762,-500.0,0.00019488,3]
[345462591,1734273053772,-582.48,0.00019488,3]
[345462592,1734273053784,-544.6,0.00019488,3]
[345462593,1734273053793,-500.0,0.00019488,3]
[345462594,1734273053802,-500.0,0.00019488,3]
[345462595,1734273053812,-624.3,0.00019488,3]
[345462596,1734273053822,-500.0,0.00019488,3]
[345462597,1734273053831,-500.0,0.00019488,3]
[345462598,1734273053840,-500.0,0.00019488,3]
[345462599,1734273053851,-500.0,0.00019488,3]
[345462600,1734273053860,-500.0,0.00019488,3]
[345462601,1734273053869,-500.0,0.00019488,3]
[345462602,1734273053878,-500.0,0.00019488,3]
[345462603,1734273053887,-500.0,0.00019488,3]
[345462604,1734273053896,-599.26,0.00019488,3]
[345462605,1734273053905,-611.62,0.00019488,3]
[345462606,1734273053915,-500.0,0.00019488,3]
[345462607,1734273053924,-427.44,0.00019488,3]
[345462608,1734273053934,-500.0,0.00019488,3]
[345462609,1734273053944,-500.0,0.00019488,3]
[345462610,1734273053953,-500.0,0.00019488,3]
[345462611,1734273053962,-500.0,0.00019488,3]
[345462612,1734273053973,-2001.64,0.00019488,3]
[345462613,1734273053982,-500.0,0.00019488,3]
[345462614,1734273053992,-500.0,0.00019488,3]
[345462615,1734273054002,-854.13,0.00019488,3]
[345462616,1734273054012,-239.58,0.00019488,3]
[345462617,1734273054023,-500.0,0.00019488,3]
[345462618,1734273054033,-500.0,0.00019488,3]
[345462619,1734273054042,-867.75,0.00019488,3]
[345462620,1734273054052,-288.246723,0.00019488,2]
[345462621,1734273054062,-500.0,0.00019488,3]
[345462622,1734273054071,-151.0,0.00019488,2]
[345462623,1734273054080,-152.712639,0.00019488,3]
[345462624,1734273054090,-288.246723,0.00019488,2]
[345462625,1734273054099,-151.0,0.00019488,2]
[345462626,1734273054110,-151.0,0.00019488,2]
[345462627,1734273054120,-875.5,0.00019488,3]
[345462628,1734273054131,-348.23,0.00019488,3]
[345462629,1734273054141,-261.098792,0.00019488,3]
[345462630,1734273054151,-500.0,0.00019488,3]
[345462631,1734273054162,-500.0,0.00019488,3]
[345462632,1734273054172,-464.910184,0.00019488,3]
[345462633,1734273054182,-151.0,0.00019488,2]
[345462634,1734273054193,-1199.5,0.00019488,3]
[345462635,1734273054203,-500.0,0.00019488,3]
[345462636,1734273054213,-151.0,0.00019488,2]
[345462637,1734273054223,-352.05,0.00019488,3]
[345462638,1734273054232,-500.0,0.00019488,3]
[345462639,1734273054242,-984.3,0.00019488,3]
[345462640,1734273054252,-500.0,0.00019488,3]
[345462641,1734273054261,-500.0,0.00019488,3]
[345462642,1734273054270,-400.0,0.00019488,3]
[345462643,1734273054280,-500.0,0.00019488,3]
[345462644,1734273054289,-500.0,0.00019488,3]
[345462645,1734273054298,-500.0,0.00019488,3]
[345462646,1734273054307,-500.0,0.00019489,3]
[345462647,1734273054317,-500.0,0.00019489,3]
[345462648,1734273054326,-500.0,0.00019489,3]
[345462649,1734273054335,-500.0,0.00019489,3]
[345462650,1734273054345,-500.0,0.00019489,3]
[345462651,1734273054354,-575.19,0.00019489,3]
[345462652,1734273054363,-500.0,0.00019489,3]
[345462653,1734273054372,-500.0,0.00019489,3]
[345462654,1734273054381,-533.8,0.00019489,3]
[345462655,1734273054391,-500.0,0.00019489,3]
[345462656,1734273054400,-500.0,0.00019489,3]
[345462657,1734273054410,-500.0,0.00019489,3]
[345462658,1734273054419,-500.0,0.00019489,3]
[345462659,1734273054429,-500.0,0.00019489,3]
[345462660,1734273054438,-500.0,0.00019489,3]
[345462661,1734273054447,-500.0,0.00019489,3]
[345462662,1734273054457,-500.0,0.00019489,3]
[345462663,1734273054466,-500.0,0.00019489,3]
[345462664,1734273054477,-500.0,0.00019489,3]
[345462665,1734273054487,-500.0,0.00019489,3]
[345462666,1734273054497,-500.0,0.00019489,3]
[345462667,1734273054506,-500.0,0.00019489,3]
[345462668,1734273054515,-500.0,0.00019489,3]
[345462669,1734273054525,-596.79,0.00019489,3]
[345462670,1734273054534,-500.0,0.00019489,3]
[345462671,1734273054544,-500.0,0.00019489,3]
[345462672,1734273054553,-500.0,0.00019489,3]
[345462673,1734273054562,-500.0,0.00019489,3]
[345462674,1734273054571,-500.0,0.00019489,3]
[345462675,1734273054581,-500.0,0.00019489,3]
[345462676,1734273054590,-500.0,0.00019489,3]
[345462677,1734273054599,-500.0,0.00019489,3]
[345462678,1734273054608,-500.0,0.00019489,3]
[345462679,1734273054617,-500.0,0.00019489,3]
[345462680,1734273054626,-200.0,0.00019489,3]
[345462681,1734273054635,-500.0,0.00019489,3]
[345462682,1734273054645,-545.16,0.00019489,3]
[345462683,1734273054653,-500.0,0.00019489,3]
[345462684,1734273054663,-575.68,0.00019489,3]
[345462685,1734273054672,-500.0,0.00019489,3]
[345462686,1734273054681,-500.0,0.00019489,3]
[345462687,1734273054690,-500.0,0.00019489,3]
[345462688,1734273054699,-500.0,0.00019489,3]
[345462689,1734273054708,-559.17,0.00019489,3]
[345462690,1734273054718,-500.0,0.00019489,3]
[345462691,1734273054733,-500.0,0.00019489,3]
[345462692,1734273054742,-500.0,0.00019489,3]
[345462693,1734273054751,-500.0,0.00019489,3]
[345462694,1734273054760,-500.0,0.00019489,3]
[345462695,1734273054769,-500.0,0.00019489,3]
[345462696,1734273054783,-500.0,0.00019489,3]
[345462697,1734273054792,-647.18,0.00019489,3]
[345462698,1734273054801,-500.0,0.00019489,3]
[345462699,1734273054811,-500.0,0.00019489,3]
[345462700,1734273054821,-500.0,0.00019489,3]
[345462701,1734273054831,-500.0,0.00019489,3]
[345462702,1734273054841,-185.9674294,0.00019489,3]
[345462703,1734273054852,-500.0,0.00019489,3]
[345462704,1734273054982,-477.0,0.00019489,3]
[345462705,1734273054992,-521.18,0.00019489,3]
[345462706,1734273055001,-500.0,0.00019489,3]
[345462707,1734273055010,-347.02,0.00019489,3]
[345462708,1734273055019,-544.14,0.00019489,3]
[345462709,1734273055028,-500.0,0.00019489,3]
[345462710,1734273055037,-500.0,0.00019489,3]
[345462711,1734273055047,-500.0,0.00019489,3]
[345462712,1734273055056,-501.38214506,0.00019489,3]
[345462713,1734273055065,-512.33,0.00019489,3]
[345462714,1734273055074,-500.0,0.00019489,3]
[345462715,1734273055083,-422.6852312,0.00019489,3]
[345462716,1734273055092,-500.0,0.00019489,3]
[345462717,1734273055101,-170.67,0.00019489,3]
[345462718,1734273055110,-151.61,0.00019489,3]
[345462719,1734273055119,-500.0,0.00019489,3]
[345462720,1734273055128,-500.0,0.00019489,3]
[345462721,1734273055137,-174.16,0.00019489,3]
[345462722,1734273055146,-500.34342038,0.00019489,3]
[345462723,1734273055155,-500.0,0.00019489,3]
[345462724,1734273055164,-565.30706952,0.00019489,3]
[345462725,1734273055173,-500.0,0.00019489,3]
[345462726,1734273055182,-500.0,0.00019489,3]
[345462727,1734273055191,-500.0,0.00019489,3]
[345462728,1734273055200,-525.39,0.00019489,3]
[345462729,1734273055209,-500.0,0.00019489,3]
[345462730,1734273055219,-500.0,0.00019489,3]
[345462731,1734273055227,-500.0,0.00019489,3]
[345462732,1734273055237,-500.0,0.00019489,3]
[345462733,1734273055246,-500.0,0.00019489,3]
[345462734,1734273055255,-500.0,0.00019489,3]
[345462735,1734273055264,-500.0,0.00019489,3]
[345462736,1734273055273,-500.0,0.00019489,3]
[345462737,1734273055282,-500.0,0.00019489,3]
[345462738,1734273055291,-500.0,0.00019489,3]
[345462739,1734273055301,-500.0,0.00019489,3]
[345462740,1734273055311,-500.0,0.00019489,3]
[345462741,1734273055320,-500.0,0.00019489,3]
[345462742,1734273055329,-500.0,0.00019489,3]
[345462743,1734273055338,-500.0,0.00019489,3]
[345462744,1734273055348,-500.0,0.00019489,3]
[345462745,1734273055357,-500.0,0.00019489,3]
[345462746,1734273055366,-500.0,0.00019489,3]
[345462747,1734273055375,-500.0,0.00019489,3]
[345462748,1734273055385,-640.52,0.00019489,3]
[345462749,1734273055394,-330.50527949,0.00019489,3]
[345462750,1734273055403,-500.0,0.00019489,3]
[345462751,1734273055413,-241.25152209,0.00019489,3]
[345462752,1734273055424,-500.0,0.00019489,3]
[345462753,1734273055434,-502.7236223,0.00019489,3]
[345462754,1734273055445,-500.0,0.00019489,3]
[345462755,1734273055454,-506.27366278,0.00019489,3]
[345462756,1734273055465,-500.0,0.00019489,3]
[345462757,1734273055477,-500.0,0.00019489,3]
[345462758,1734273055486,-500.0,0.00019489,3]
[345462759,1734273055495,-357.20682757,0.00019489,3]
[345462760,1734273055505,-500.0,0.00019489,3]
[345462761,1734273055514,-428.9669019,0.00019489,3]
[345462762,1734273055523,-500.0,0.00019489,3]
[345462763,1734273055532,-500.0,0.00019489,3]
[345462764,1734273055541,-500.0,0.00019489,3]
[345462765,1734273055551,-503.13647425,0.00019489,3]
[345462766,1734273055560,-500.0,0.00019489,3]
[345462767,1734273055569,-500.0,0.00019489,3]
[345462768,1734273055579,-500.0,0.00019489,3]
[345462769,1734273055588,-500.0,0.00019489,3]
[345462770,1734273055597,-500.0,0.00019489,3]
[345462771,1734273055607,-500.0,0.00019489,3]
[345462772,1734273055616,-500.0,0.00019489,3]
[345462773,1734273055625,-500.0,0.00019489,3]
[345462774,1734273055635,-500.0,0.00019489,3]
[345462775,1734273055644,-500.0,0.00019489,3]
[345462776,1734273055653,-500.0,0.00019489,3]
[345462777,1734273055662,-500.0,0.00019489,3]
[345462778,1734273055671,-500.0,0.00019489,3]
[345462779,1734273055681,-500.0,0.00019489,3]
[345462780,1734273055690,-500.0,0.00019489,3]
[345462781,1734273055699,-500.0,0.00019489,3]
[345462782,1734273055708,-500.0,0.00019489,3]
[345462783,1734273055717,-500.0,0.00019489,3]
[345462784,1734273055727,-500.0,0.00019489,3]
[345462785,1734273055736,-252.95807559,0.00019489,3]
[345462786,1734273055745,-555.9,0.00019489,3]
[345462787,1734273055754,-500.0,0.00019489,3]
[345462788,1734273055763,-476.97587048,0.00019489,3]
[345462789,1734273055772,-500.0,0.00019489,3]
[345462790,1734273055784,-500.0,0.00019489,3]
[345462791,1734273055793,-500.0,0.00019489,3]
[345462792,1734273055803,-500.0,0.00019489,3]
[345462793,1734273055812,-151.0,0.00019489,2]
[345462794,1734273055822,-254.83,0.00019489,3]
[345462795,1734273055831,-151.482301,0.00019489,2]
[345462796,1734273055840,-500.0,0.00019489,3]
[345462797,1734273055849,-362.054853,0.00019489,2]
[345462798,1734273055859,-362.054853,0.00019489,2]
[345462799,1734273055869,-295.374934,0.00019489,2]
[345462800,1734273055878,-500.0,0.00019489,3]
[345462801,1734273055888,-151.0,0.00019489,2]
[345462802,1734273055896,-518.70008579,0.00019489,3]
[345462803,1734273055906,-500.0,0.00019489,3]
[345462804,1734273055915,-500.0,0.00019489,3]
[345462805,1734273055924,-500.0,0.00019489,3]
[345462806,1734273055933,-159.87243,0.00019489,2]
[345462807,1734273055942,-506.75210088,0.00019489,3]
[345462808,1734273055951,-159.87243,0.00019489,2]
[345462809,1734273055961,-151.0,0.00019489,2]
[345462810,1734273055970,-239.20144513,0.00019489,3]
[345462811,1734273055979,-151.0,0.00019489,2]
[345462812,1734273055988,-500.0,0.00019489,3]
[345462813,1734273055997,-714.06,0.00019489,3]
[345462814,1734273056006,-151.0,0.00019489,2]
[345462815,1734273056014,-500.67590236,0.00019489,3]
[345462816,1734273056024,-500.0,0.00019489,3]
[345462817,1734273056033,-500.0,0.00019489,3]
[345462818,1734273056041,-151.0,0.00019489,2]
[345462819,1734273056051,-500.0,0.00019489,3]
[345462820,1734273056060,-503.74180556,0.00019489,3]
[345462821,1734273056069,-500.0,0.00019489,3]
[345462822,1734273056078,-500.0,0.00019489,3]
[345462823,1734273056088,-501.21353826,0.00019489,3]
[345462824,1734273056096,-151.0,0.00019489,2]
[345462825,1734273056105,-165.605568,0.00019489,2]
[345462826,1734273056114,-601.5,0.00019489,3]
[345462827,1734273056123,-154.167516,0.00019489,2]
[345462828,1734273056132,-712.22,0.00019489,3]
[345462829,1734273056141,-151.0,0.00019489,2]
[345462830,1734273056150,-965.33,0.00019489,3]
[345462831,1734273056159,-500.0,0.00019489,3]
[345462832,1734273056168,-151.0,0.00019489,2]
[345462833,1734273056177,-500.0,0.00019489,3]
[345462834,1734273056186,-151.0,0.00019489,2]
[345462835,1734273056195,-986.7,0.00019489,3]
[345462836,1734273056205,-151.0,0.00019489,2]
[345462837,1734273056213,-758.32,0.00019489,3]
[345462838,1734273056223,-500.0,0.00019489,3]
[345462839,1734273056232,-500.0,0.00019489,3]
[345462840,1734273056241,-500.0,0.00019489,3]
[345462841,1734273056251,-220.234453,0.00019489,2]
[345462842,1734273056261,-500.0,0.00019489,3]
[345462843,1734273056270,-220.234453,0.00019489,2]
[345462844,1734273056279,-162.344039,0.00019489,2]
[345462845,1734273056288,-894.68,0.00019489,3]
[345462846,1734273056298,-151.0,0.00019489,2]
[345462847,1734273056307,-162.344039,0.00019489,2]
[345462848,1734273056316,-500.0,0.00019489,3]
[345462849,1734273056326,-889.33,0.00019489,3]
[345462850,1734273056335,-4061.07,0.00019489,3]
[345462851,1734273056345,-151.0,0.00019489,2]
[345462852,1734273056355,-500.0,0.00019489,3]
[345462853,1734273056365,-151.0,0.00019489,2]
[345462854,1734273056374,-523.94,0.00019489,3]
[345462855,1734273056383,-500.0,0.00019489,3]
[345462856,1734273056392,-500.0,0.00019489,3]
[345462857,1734273056402,-500.0,0.00019489,3]
[345462858,1734273056411,-500.0,0.00019489,3]
[345462859,1734273056421,-500.0,0.00019489,3]
[345462860,1734273056431,-500.0,0.00019489,3]
[345462861,1734273056440,-500.0,0.00019489,3]
[345462862,1734273056451,-2671.559386,0.00019489,2]
[345462863,1734273056463,-500.0,0.00019489,3]
[345462864,1734273056475,-500.0,0.00019489,3]
[345462865,1734273056484,-500.0,0.00019489,3]
[345462866,1734273056494,-2671.559386,0.00019489,2]
[345462867,1734273056504,-500.0,0.00019489,3]
[345462868,1734273056514,-500.0,0.00019489,3]
[345462869,1734273056524,-505.55,0.00019489,3]
[345462870,1734273056533,-500.0,0.00019489,3]
[345462871,1734273056543,-574.4,0.00019489,3]
[345462872,1734273056551,-500.0,0.00019489,3]
[345462873,1734273056561,-298.76,0.00019489,3]
[345462874,1734273056570,-500.0,0.00019489,3]
[345462875,1734273056579,-1228.124814,0.00019489,2]
[345462876,1734273056588,-500.0,0.00019489,3]
[345462877,1734273056597,-1050.33,0.00019489,3]
[345462878,1734273056607,-151.0,0.00019489,2]
[345462879,1734273056617,-500.0,0.00019489,3]
[345462880,1734273056627,-1228.124814,0.00019489,2]
[345462881,1734273056636,-151.0,0.00019489,2]
[345462882,1734273056645,-468.44,0.00019489,3]
[345462883,1734273056655,-151.0,0.00019489,2]
[345462884,1734273056668,-1373.777477,0.00019489,2]
[345462885,1734273056678,-151.0,0.00019489,2]
[345462886,1734273056690,-500.0,0.00019489,3]
[345462887,1734273056699,-500.0,0.00019489,3]
[345462888,1734273056708,-500.0,0.00019489,3]
[345462889,1734273056718,-500.0,0.00019489,3]
[345462890,1734273056728,-1373.777477,0.00019489,2]
[345462891,1734273056737,-500.0,0.00019489,3]
[345462892,1734273056747,-500.0,0.00019489,3]
[345462893,1734273056756,-500.0,0.00019489,3]
[345462894,1734273056765,-544.6,0.00019489,3]
[345462895,1734273056778,-500.0,0.00019489,3]
[345462896,1734273056787,-500.0,0.00019489,3]
[345462897,1734273056796,-555.123078,0.00019489,2]
[345462898,1734273056805,-624.3,0.00019489,3]
[345462899,1734273056814,-10000.0,0.00019489,2]
[345462900,1734273056825,-500.0,0.00019489,3]
[345462901,1734273056835,-500.0,0.00019489,3]
[345462902,1734273056844,-500.0,0.00019489,3]
[345462903,1734273056855,-500.0,0.00019489,3]
[345462904,1734273056866,-555.123078,0.00019489,2]
[345462905,1734273056876,-10000.0,0.00019489,2]
[345462906,1734273056885,-500.0,0.00019489,3]
[345462907,1734273056895,-151.0,0.00019489,2]
[345462908,1734273056905,-500.0,0.00019489,3]
[345462909,1734273056915,-500.0,0.00019489,3]
[345462910,1734273056923,-3678.00414,0.00019489,2]
[345462911,1734273056933,-500.0,0.00019489,3]
[345462912,1734273056942,-500.0,0.00019489,3]
[345462913,1734273056951,-500.0,0.00019489,3]
[345462914,1734273056960,-151.0,0.00019489,2]
[345462915,1734273056971,-500.0,0.00019489,3]
[345462916,1734273056981,-500.0,0.00019489,3]
[345462917,1734273056990,-151.0,0.00019489,2]
[345462918,1734273056999,-1926.92472,0.00019489,2]
[345462919,1734273057008,-599.26,0.00019489,3]
[345462920,1734273057018,-500.0,0.00019489,3]
[345462921,1734273057027,-500.0,0.00019489,3]
[345462922,1734273057036,-611.62,0.00019489,3]
[345462923,1734273057045,-500.0,0.00019489,3]
[345462924,1734273057054,-500.0,0.00019489,3]
[345462925,1734273057063,-500.0,0.00019489,3]
[345462926,1734273057072,-500.0,0.00019489,3]
[345462927,1734273057081,-500.0,0.00019489,3]
[345462928,1734273057090,-506.69438535,0.00019489,3]
[345462929,1734273057099,-500.0,0.00019489,3]
[345462930,1734273057108,-500.0,0.00019489,3]
[345462931,1734273057117,-2001.64,0.00019489,3]
[345462932,1734273057126,-500.0,0.00019489,3]
[345462933,1734273057135,-500.0,0.00019489,3]
[345462934,1734273057145,-500.0,0.00019489,3]
[345462935,1734273057154,-500.0,0.00019489,3]
[345462936,1734273057163,-854.13,0.00019489,3]
[345462937,1734273057172,-502.1087448,0.00019489,3]
[345462938,1734273057182,-500.0,0.00019489,3]
[345462939,1734273057191,-500.0,0.00019489,3]
[345462940,1734273057201,-505.48989413,0.00019489,3]
[345462941,1734273057210,-503.39927343,0.00019489,3]
[345462942,1734273057221,-867.75,0.00019489,3]
[345462943,1734273057231,-500.0,0.00019489,3]
[345462944,1734273057240,-288.246723,0.00019489,2]
[345462945,1734273057250,-500.0,0.00019489,3]
[345462946,1734273057259,-151.0,0.00019489,2]
[345462947,1734273057268,-500.0,0.00019489,3]
[345462948,1734273057278,-288.246723,0.00019489,2]
[345462949,1734273057287,-151.0,0.00019489,2]
[345462950,1734273057297,-875.5,0.00019489,3]
[345462951,1734273057310,-261.098792,0.00019489,3]
[345462952,1734273057319,-500.0,0.00019489,3]
[345462953,1734273057328,-500.0,0.00019489,3]
[345462954,1734273057338,-464.910184,0.00019489,3]
[345462955,1734273057347,-500.0,0.00019489,3]
[345462956,1734273057357,-151.0,0.00019489,2]
[345462957,1734273057366,-1199.5,0.00019489,3]
[345462958,1734273057376,-500.0,0.00019489,3]
[345462959,1734273057385,-206.012157,0.00019489,2]
[345462960,1734273057395,-500.0,0.00019489,3]
[345462961,1734273057404,-500.0,0.00019489,3]
[345462962,1734273057413,-500.0,0.00019489,2]
[345462963,1734273057422,-500.0,0.00019489,3]
[345462964,1734273057432,-500.0,0.00019489,3]
[345462965,1734273057442,-984.3,0.00019489,3]
[345462966,1734273057451,-500.0,0.00019489,3]
[345462967,1734273057460,-500.0,0.00019489,3]
[345462968,1734273057469,-500.0,0.00019489,3]
[345462969,1734273057479,-500.0,0.00019489,3]
[345462970,1734273057488,-500.0,0.00019489,3]
[345462971,1734273057497,-64976.38361392,0.0001949,2]
[345462972,1734273057811,-7270.40232,0.0001949,2]
[345462974,1734273471642,190.59,0.00010137,2]
[345462977,1734273678181,450.0,0.00013,2]
[345462978,1734273679265,500.0,0.00015,2]
[345462980,1734274232048,-1263.96,0.00016164,2]
[345462981,1734274232057,-51.34795031,0.00016813,2]
[345462982,1734274232290,-139.24204969,0.00016813,2]
[345462983,1734274232301,-550.0,0.00017,2]
[345462984,1734274232311,-250.0,0.00017591,2]
[345462985,1734274232320,-1295.09,0.00017592,2]
[345462986,1734274232329,-553.59,0.00017607,2]
[345462987,1734274232338,-168.53,0.0001766,2]
[345462988,1734274232348,-200.0,0.00017952,2]
[345462989,1734274232358,-300.0,0.00017974,2]
[345462990,1734274232367,-150.0,0.00017975,2]
[345462991,1734274232378,-150.0,0.00017975,2]
[345462992,1734274232387,-150.0,0.00017975,2]
[345462993,1734274232397,-150.0,0.00017975,2]
[345462994,1734274232406,-150.73121003,0.00017975,2]
[345462995,1734274232415,-151.06147518,0.00017975,2]